fUST/lending_fUST_20240911
["ID","MTS","AMOUNT","RATE_DAILY","PERIOD"]
[337735867,1725996428910,-1000.0,0.00039303,2]
[337735868,1725996428931,-1000.0,0.00039325,2]
[337735869,1725996428955,-1000.0,0.00039331,2]
[337735870,1725996428976,-1000.0,0.00039339,2]
[337735871,1725996428997,-1000.0,0.0003935,2]
[337735872,1725996429019,-1000.0,0.00039359,2]
[337735873,1725996429040,-1000.0,0.00039376,2]
[337735874,1725996429061,-1000.0,0.00039381,2]
[337735875,1725996429081,-1000.0,0.00039392,2]
[337735876,1725996429103,-500.0,0.00039393,7]
[337735877,1725996429124,-1000.0,0.00039393,2]
[337735878,1725996429146,-73.28278513,0.00039398,2]
[337735962,1725996632799,-500.0,0.00038041,7]
[337735964,1725996632810,-500.0,0.00038048,7]
[337735967,1725996632820,-500.0,0.00038251,7]
[337735969,1725996632830,-944.38793135,0.00038589,7]
[337735970,1725996632839,-500.0,0.0003901,7]
[337735972,1725996632851,-500.0,0.00039053,7]
[337735974,1725996632861,-500.0,0.00039115,7]
[337735975,1725996632871,-306.0,0.00039233,2]
[337735977,1725996632880,-1000.0,0.00039305,2]
[337735979,1725996632889,-372.70206865,0.00039389,7]
[337735983,1725996632915,-127.29793135,0.00039389,7]
[337735985,1725996632925,-494.81591448,0.00039398,2]
[337735987,1725996632954,-431.90130039,0.00039398,2]
[337735988,1725996632964,-1000.0,0.000394,2]
[337735989,1725996632975,-1000.0,0.00039431,2]
[337735990,1725996632985,-1000.0,0.00039435,2]
[337735991,1725996632994,-1000.0,0.00039437,2]
[337735992,1725996633003,-306.59883996,0.00039451,2]
[337735993,1725996633013,-300.0,0.00039452,2]
[337735994,1725996633023,-1000.0,0.00039457,2]
[337735995,1725996633034,-613.67185139,0.00039462,2]
[337736029,1725996647045,-386.32814861,0.00039462,2]
[337736030,1725996647056,-1000.0,0.0003947,2]
[337736031,1725996647068,-1000.0,0.00039474,2]
[337736032,1725996647078,-160.913878,0.00039477,2]
[337736033,1725996647089,-1000.0,0.00039482,2]
[337736034,1725996647100,-681.3762365,0.00039482,120]
[337736054,1725997647410,-160.913878,0.00017808,2]
[337736055,1725997647432,-160.913878,0.00032705,2]
[337736056,1725997647455,-153.55,0.000354,31]
[337736057,1725997647477,-153.55,0.000354,31]
[337736058,1725997647499,-153.55,0.000354,31]
[337736059,1725997647521,-153.55,0.000354,31]
[337736060,1725997647544,-153.55,0.000354,31]
[337736061,1725997647565,-161.555281,0.00035836,2]
[337736062,1725997647586,-160.281756,0.00036067,120]
[337736063,1725997647606,-465.0,0.00037228,2]
[337736064,1725997647637,-2316.2117894,0.00037525,2]
[337736065,1725997647660,-500.0,0.00037598,7]
[337736066,1725997647679,-500.0,0.00037838,7]
[337736067,1725997647699,-153.07231703,0.00037857,23]
[337736068,1725997647720,-700.0,0.0003787,7]
[337736069,1725997647742,-500.0,0.00038014,7]
[337736070,1725997647762,-2316.2117894,0.00038025,2]
[337736071,1725997647782,-500.0,0.00038298,7]
[337736072,1725997647802,-700.0,0.0003842,7]
[337736073,1725997647824,-2316.2117894,0.00038525,2]
[337736074,1725997647846,-500.0,0.00038659,7]
[337736075,1725997647870,-500.0,0.00038694,7]
[337736076,1725997647890,-500.0,0.00038723,7]
[337736077,1725997647913,-153.0,0.0003883,2]
[337736078,1725997647938,-307.7383087,0.00038837,2]
[337736079,1725997647963,-153.55,0.000389,31]
[337736080,1725997647987,-153.55,0.000389,31]
[337736081,1725997648014,-153.55,0.000389,31]
[337736082,1725997648035,-153.55,0.000389,31]
[337736083,1725997648057,-153.55,0.000389,31]
[337736084,1725997648294,-153.55,0.000389,31]
[337736085,1725997648316,-153.55,0.000389,31]
[337736086,1725997648339,-153.55,0.000389,31]
[337736087,1725997648363,-153.55,0.000389,31]
[337736088,1725997648390,-153.55,0.000389,31]
[337736089,1725997648413,-153.0,0.00038904,2]
[337736090,1725997648434,-153.0,0.00038904,2]
[337736091,1725997648456,-153.0,0.00038904,2]
[337736092,1725997648477,-153.0,0.00038904,2]
[337736093,1725997648498,-153.0,0.00038904,2]
[337736094,1725997648520,-500.0,0.00038926,7]
[337736095,1725997648541,-200.0,0.00039,2]
[337736096,1725997648562,-4632.4235788,0.00039025,2]
[337736097,1725997648585,-700.0,0.00039036,7]
[337736098,1725997648605,-500.0,0.00039123,7]
[337736099,1725997648628,-500.0,0.00039177,7]
[337736100,1725997648649,-232.2975734,0.00039199,2]
[337736101,1725997648671,-416.2669517,0.00039199,2]
[337736102,1725997648692,-153.0,0.00039199,2]
[337736103,1725997648712,-500.0,0.00039252,7]
[337736104,1725997648733,-950.44685601,0.00039289,2]
[337736105,1725997648753,-1000.0,0.000393,29]
[337736106,1725997648774,-500.0,0.00039342,7]
[337736107,1725997648794,-1000.0,0.00039353,2]
[337736108,1725997648816,-1000.0,0.00039358,2]
[337736109,1725997648837,-306.0,0.00039397,2]
[337736110,1725997648856,-500.0,0.00039467,7]
[337736111,1725997648878,-1000.0,0.00039469,2]
[337736112,1725997648898,-500.0,0.00039482,2]
[337736113,1725997648918,-600.0,0.00039482,3]
[337736114,1725997648940,-596.09775625,0.00039482,3]
[337736115,1725997648963,-2531.106594,0.00039482,2]
[337736116,1725997648984,-1000.0,0.00039489,2]
[337736117,1725997649005,-1000.0,0.00039497,2]
[337736118,1725997649025,-150.0,0.000395,39]
[337736119,1725997649283,-150.0,0.000395,2]
[337736120,1725997649307,-1000.0,0.00039519,2]
[337736121,1725997649329,-700.0,0.00039521,7]
[337736122,1725997649353,-14099.66,0.00039526,3]
[337736123,1725997649377,-182.5,0.00039527,3]
[337736124,1725997649399,-16919.59,0.00039527,3]
[337736125,1725997649420,-137.35336207,0.00039536,15]
[337736165,1725997832619,-473.83415027,0.00037608,7]
[337736205,1725997840828,-26.16584973,0.00037608,7]
[337736206,1725997840841,-473.83415027,0.00037755,7]
[337736222,1725997843530,-126.16584973,0.00037755,7]
[337736223,1725997843540,-600.0,0.00037902,7]
[337736224,1725997843550,-500.0,0.00037903,7]
[337736225,1725997843560,-500.0,0.0003847,7]
[337736226,1725997843570,-500.0,0.00038784,7]
[337736227,1725997843579,-500.0,0.0003884,7]
[337736228,1725997843589,-600.0,0.00038908,7]
[337736229,1725997843598,-600.0,0.00039105,7]
[337736230,1725997843608,-500.0,0.00039129,7]
[337736231,1725997843618,-600.0,0.00039146,7]
[337736232,1725997843627,-831.640999,0.00039458,2]
[337736233,1725997843636,-1000.0,0.00039469,2]
[337736234,1725997843645,-2277.9959346,0.00039482,2]
[337736235,1725997843655,-500.0,0.0003952,30]
[337736236,1725997843665,-450.06675238,0.0003952,2]
[337736237,1725997843674,-500.0,0.00039538,2]
[337736238,1725997843683,-198.97782635,0.00039538,7]
[337736239,1725997843693,-500.0,0.00039538,30]
[337736240,1725997843702,-500.0,0.00039538,30]
[337736241,1725997843712,-500.0,0.00039546,30]
[337736242,1725997843721,-500.0,0.00039546,30]
[337736243,1725997843731,-500.0,0.00039546,30]
[337736244,1725997843741,-500.0,0.00039546,30]
[337736245,1725997843751,-500.0,0.00039546,30]
[337736246,1725997843760,-505.70942767,0.00039546,30]
[337736247,1725997843770,-500.0,0.00039547,2]
[337736248,1725997843781,-500.0,0.00039547,2]
[337736249,1725997843791,-466.33448199,0.00039547,2]
[337736250,1725997843801,-1000.0,0.00039547,5]
[337736251,1725997843810,-1000.0,0.00039547,5]
[337736252,1725997843820,-1000.0,0.00039547,5]
[337736253,1725997843829,-1005.09275956,0.00039547,5]
[337736254,1725997843839,-500.0,0.00039547,30]
[337736255,1725997843848,-500.0,0.00039548,30]
[337736256,1725997843857,-500.0,0.00039548,30]
[337736257,1725997843867,-500.0,0.00039556,30]
[337736258,1725997843876,-500.0,0.00039556,30]
[337736259,1725997843885,-372.56267105,0.00039556,30]
[337736260,1725997843895,-500.0,0.00039556,30]
[337736261,1725997843904,-500.0,0.00039558,30]
[337736262,1725997843914,-1018.63072174,0.00039558,2]
[337736263,1725997843923,-500.0,0.00039558,30]
[337736264,1725997843932,-500.0,0.00039558,30]
[337736265,1725997843941,-15133.64,0.00039559,3]
[337736266,1725997843950,-12611.36,0.00039559,3]
[337736267,1725997843959,-10509.47,0.00039559,3]
[337736268,1725997843968,-500.0,0.00039566,30]
[337736269,1725997843978,-500.0,0.00039566,30]
[337736270,1725997843987,-500.0,0.00039566,30]
[337736271,1725997843996,-527.81934227,0.00039567,30]
[337736272,1725997844005,-500.0,0.00039567,7]
[337736273,1725997844015,-500.0,0.00039567,15]
[337736274,1725997844025,-500.0,0.00039567,15]
[337736275,1725997844035,-500.0,0.00039567,15]
[337736276,1725997844044,-500.0,0.00039567,15]
[337736277,1725997844054,-383.54726863,0.00039567,15]
[337736278,1725997844064,-500.0,0.00039567,15]
[337736279,1725997844074,-500.0,0.00039567,15]
[337736280,1725997844083,-500.0,0.00039567,15]
[337736281,1725997844092,-500.0,0.00039567,15]
[337736282,1725997844101,-500.0,0.00039567,15]
[337736283,1725997844110,-500.0,0.00039567,15]
[337736284,1725997844119,-500.0,0.00039567,15]
[337736285,1725997844131,-500.0,0.00039567,15]
[337736286,1725997844140,-500.0,0.00039567,15]
[337736287,1725997844149,-500.0,0.00039567,15]
[337736288,1725997844158,-500.0,0.00039567,15]
[337736289,1725997844168,-500.0,0.00039567,15]
[337736290,1725997844178,-500.0,0.00039567,15]
[337736291,1725997844187,-500.0,0.00039567,15]
[337736292,1725997844196,-500.0,0.00039567,15]
[337736294,1725997844206,-500.0,0.00039567,15]
[337736296,1725997844216,-500.0,0.00039567,15]
[337736298,1725997844225,-500.0,0.00039567,15]
[337736300,1725997844234,-500.0,0.00039567,15]
[337736302,1725997844244,-500.0,0.00039567,15]
[337736304,1725997844254,-500.0,0.00039567,15]
[337736305,1725997844263,-500.0,0.00039567,15]
[337736306,1725997844273,-500.0,0.00039567,15]
[337736307,1725997844282,-500.0,0.00039567,15]
[337736308,1725997844294,-500.0,0.00039567,15]
[337736309,1725997844304,-500.0,0.00039567,15]
[337736310,1725997844313,-500.0,0.00039567,15]
[337736311,1725997844324,-500.0,0.00039567,15]
[337736312,1725997844334,-500.0,0.00039567,15]
[337736313,1725997844343,-500.0,0.00039567,15]
[337736314,1725997844353,-500.0,0.00039567,15]
[337736315,1725997844362,-500.0,0.00039567,15]
[337736316,1725997844372,-500.0,0.00039567,15]
[337736317,1725997844382,-500.0,0.00039567,15]
[337736318,1725997844391,-500.0,0.00039567,15]
[337736319,1725997844400,-500.0,0.00039567,15]
[337736320,1725997844410,-500.0,0.00039567,15]
[337736321,1725997844419,-500.0,0.00039567,15]
[337736322,1725997844428,-500.0,0.00039567,15]
[337736323,1725997844438,-500.0,0.00039567,15]
[337736324,1725997844447,-500.0,0.00039567,15]
[337736325,1725997844457,-500.0,0.00039567,15]
[337736326,1725997844466,-189.92724119,0.00039567,15]
[337736327,1725997844476,-500.0,0.00039567,15]
[337736328,1725997844486,-500.0,0.00039567,15]
[337736329,1725997844495,-500.0,0.00039567,15]
[337736330,1725997844505,-500.0,0.00039567,15]
[337736331,1725997844514,-500.0,0.00039567,15]
[337736332,1725997844525,-500.0,0.00039567,15]
[337736333,1725997844535,-23661.69890098,0.00039568,31]
[337736334,1725997844544,-500.0,0.00039568,30]
[337736335,1725997844554,-500.0,0.00039568,30]
[337736336,1725997844564,-531.55186902,0.00039568,30]
[337736337,1725997844573,-500.0,0.00039568,30]
[337736338,1725997844583,-500.0,0.00039569,30]
[337736339,1725997844592,-500.0,0.00039569,30]
[337736340,1725997844601,-500.0,0.00039569,30]
[337736341,1725997844611,-500.0,0.00039569,30]
[337736342,1725997844620,-500.0,0.00039569,30]
[337736343,1725997844630,-500.0,0.00039569,30]
[337736344,1725997844640,-500.0,0.00039569,30]
[337736345,1725997844649,-500.0,0.00039569,30]
[337736346,1725997844658,-500.0,0.00039569,30]
[337736347,1725997844667,-500.0,0.00039569,30]
[337736348,1725997844676,-303.1824127,0.00039569,30]
[337736349,1725997844685,-500.0,0.00039569,30]
[337736350,1725997844696,-500.0,0.00039569,30]
[337736351,1725997844705,-500.0,0.00039569,30]
[337736352,1725997844714,-500.0,0.00039569,30]
[337736353,1725997844724,-500.0,0.00039569,30]
[337736354,1725997844735,-500.0,0.00039569,30]
[337736355,1725997844746,-500.0,0.00039569,30]
[337736356,1725997844756,-500.0,0.00039569,30]
[337736357,1725997844766,-500.0,0.00039569,30]
[337736358,1725997844777,-500.0,0.00039569,30]
[337736359,1725997844786,-999.0,0.00039569,2]
[337736360,1725997844796,-500.0,0.00039569,30]
[337736361,1725997844805,-500.0,0.00039569,30]
[337736362,1725997844814,-500.0,0.00039569,30]
[337736363,1725997844823,-500.0,0.00039569,30]
[337736364,1725997844833,-500.0,0.00039569,30]
[337736365,1725997844842,-170.58535342,0.00039569,30]
[337736366,1725997844852,-500.0,0.00039569,30]
[337736367,1725997844862,-500.0,0.00039569,30]
[337736368,1725997844873,-500.0,0.00039569,30]
[337736369,1725997844883,-500.0,0.00039569,30]
[337736370,1725997844893,-500.0,0.00039569,30]
[337736371,1725997844903,-185.0,0.00039569,30]
[337736372,1725997844912,-500.0,0.00039569,15]
[337736373,1725997844921,-500.0,0.00039569,15]
[337736374,1725997844931,-387.06882593,0.00039569,15]
[337736375,1725997844940,-500.0,0.00039569,15]
[337736376,1725997844949,-500.0,0.00039569,15]
[337736377,1725997844959,-500.0,0.00039569,15]
[337736378,1725997844968,-283.24510018,0.00039569,15]
[337736379,1725997844977,-500.0,0.00039569,15]
[337736380,1725997844986,-500.0,0.00039569,15]
[337736381,1725997844996,-500.0,0.00039569,15]
[337736382,1725997845006,-500.0,0.00039569,15]
[337736383,1725997845015,-500.0,0.00039569,15]
[337736384,1725997845026,-500.0,0.00039569,15]
[337736385,1725997845035,-239.01053503,0.00039569,15]
[337736386,1725997845045,-500.0,0.00039569,15]
[337736387,1725997845054,-500.0,0.00039569,15]
[337736388,1725997845064,-500.0,0.00039569,15]
[337736389,1725997845073,-500.0,0.00039569,15]
[337736390,1725997845083,-500.0,0.00039569,15]
[337736391,1725997845093,-500.0,0.00039569,15]
[337736392,1725997845103,-500.0,0.00039569,15]
[337736393,1725997845114,-500.0,0.00039569,15]
[337736394,1725997845125,-477.28928551,0.00039569,15]
[337736395,1725997845134,-500.0,0.00039569,15]
[337736396,1725997845144,-500.0,0.00039569,15]
[337736397,1725997845153,-350.0,0.00039569,15]
[337736398,1725997845163,-500.0,0.00039569,15]
[337736399,1725997845174,-500.0,0.00039569,15]
[337736400,1725997845184,-500.0,0.00039569,15]
[337736401,1725997845194,-500.0,0.00039569,15]
[337736402,1725997845203,-250.0,0.00039569,15]
[337736403,1725997845213,-3838.92736704,0.0003957,31]
[337736424,1725997847193,-7866.23371769,0.00039558,3]
[337736441,1725997889464,5050.7170725,0.00035512,2]
[337736518,1725998747149,-173.651185,0.00017808,2]
[337736519,1725998747173,-150.0,0.00021,2]
[337736520,1725998747195,-173.651185,0.00024081,2]
[337736521,1725998747216,-523.0,0.00028326,2]
[337736522,1725998747237,-166.66666667,0.00029493,2]
[337736523,1725998747258,-173.651185,0.00030353,2]
[337736524,1725998747278,-523.0,0.00031326,2]
[337736525,1725998747298,-166.666666,0.00031669,2]
[337736526,1725998747318,-252.307063,0.00031706,2]
[337736527,1725998747340,-400.0,0.00031824,2]
[337736528,1725998747360,-166.666666,0.00032532,2]
[337736529,1725998747381,-166.666666,0.00033396,2]
[337736530,1725998747401,-300.0,0.00033396,2]
[337736531,1725998747421,-166.666666,0.00034259,2]
[337736532,1725998747443,-523.0,0.00034326,2]
[337736533,1725998747464,-212.0,0.00034986,2]
[337736534,1725998747487,-17998.6504288,0.00034986,2]
[337736535,1725998747509,-560.0,0.00035006,2]
[337736536,1725998747529,-166.666666,0.00035123,2]
[337736537,1725998747551,-157.4118425,0.00035248,2]
[337736538,1725998747572,-1280.55222016,0.000353,2]
[337736539,1725998747595,-153.59,0.000354,31]
[337736540,1725998747617,-153.59,0.000354,31]
[337736541,1725998747641,-153.59,0.000354,31]
[337736542,1725998747663,-153.59,0.000354,31]
[337736543,1725998747683,-3200.0,0.00035512,7]
[337736544,1725998747703,-166.666666,0.00035986,2]
[337736545,1725998747724,-200.12184415,0.00036,7]
[337736546,1725998747744,-159.8213665,0.0003601,2]
[337736547,1725998747765,-173.651185,0.00036626,2]
[337736548,1725998747786,-2334.0495978,0.00036844,2]
[337736549,1725998747806,-465.0,0.00036915,2]
[337736550,1725998747826,-523.0,0.00037326,2]
[337736551,1725998747845,-700.0,0.00037591,7]
[337736552,1725998747864,-900.0,0.0003777,7]
[337736553,1725998747884,-1100.0,0.00037828,7]
[337736554,1725998747906,-500.0,0.00037833,7]
[337736555,1725998747926,-207.97878043,0.00037844,49]
[337736556,1725998747947,-153.07231703,0.00037862,23]
[337736557,1725998747967,-500.0,0.00037914,7]
[337736558,1725998747989,-632.99371446,0.0003794,7]
[337736559,1725998748011,-212.0,0.00037986,2]
[337736560,1725998748030,-160.0,0.00038022,3]
[337736561,1725998748050,-700.0,0.00038108,7]
[337736562,1725998748073,-700.0,0.00038153,7]
[337736563,1725998748338,-1100.0,0.00038189,7]
[337736564,1725998748359,-500.0,0.00038341,7]
[337736565,1725998748379,-1100.0,0.00038423,7]
[337736566,1725998748398,-500.0,0.00038434,7]
[337736567,1725998748418,-783.0,0.00038507,30]
[337736568,1725998748439,-500.0,0.00038649,7]
[337736569,1725998748459,-500.0,0.00038668,7]
[337736570,1725998748480,-1280.55222014,0.00038756,2]
[337736571,1725998748501,-500.0,0.00038756,7]
[337736572,1725998748525,-500.0,0.00038843,7]
[337736573,1725998748546,-500.0,0.00038897,7]
[337736574,1725998748568,-153.59,0.000389,31]
[337736575,1725998748591,-153.59,0.000389,31]
[337736576,1725998748617,-153.59,0.000389,31]
[337736577,1725998748640,-153.59,0.000389,31]
[337736578,1725998748665,-153.59,0.000389,31]
[337736579,1725998748689,-153.59,0.000389,31]
[337736580,1725998748711,-153.59,0.000389,31]
[337736581,1725998748735,-153.59,0.000389,31]
[337736582,1725998748758,-4972.0147538,0.00039037,2]
[337736583,1725998748782,-700.0,0.00039071,7]
[337736584,1725998748803,-500.0,0.00039107,7]
[337736585,1725998748825,-900.0,0.00039124,7]
[337736586,1725998748845,-153.0,0.00039233,2]
[337736587,1725998748866,-153.0,0.00039233,2]
[337736588,1725998748888,-208.3247076,0.00039241,2]
[337736589,1725998748910,-700.0,0.00039262,7]
[337736590,1725998748931,-2117.82360347,0.00039281,32]
[337736591,1725998748952,-4972.0147539,0.00039368,2]
[337736592,1725998748973,-239.8,0.0003939,30]
[337736593,1725998748993,-500.0,0.00039432,7]
[337736594,1725998749019,-500.0,0.00039447,7]
[337736595,1725998749038,-2083.56383214,0.0003947,2]
[337736596,1725998749059,-1000.0,0.0003947,2]
[337736597,1725998749079,-500.0,0.00039499,7]
[337736598,1725998749100,-150.0,0.000395,39]
[337736599,1725998749120,-1100.0,0.00039531,7]
[337736600,1725998749142,-500.0,0.00039535,30]
[337736601,1725998749165,-500.0,0.00039537,15]
[337736602,1725998749187,-424.55714454,0.00039537,7]
[337736603,1725998749207,-500.0,0.00039537,15]
[337736604,1725998749227,-500.0,0.00039537,15]
[337736605,1725998749248,-500.0,0.00039537,15]
[337736606,1725998749271,-500.0,0.00039537,15]
[337736607,1725998749291,-500.0,0.00039537,15]
[337736608,1725998749312,-500.0,0.00039537,15]
[337736609,1725998749333,-500.0,0.00039537,15]
[337736610,1725998749355,-500.0,0.00039537,15]
[337736611,1725998749378,-500.0,0.00039537,15]
[337736612,1725998749400,-500.0,0.00039537,15]
[337736613,1725998749421,-500.0,0.00039537,15]
[337736614,1725998749443,-568.99272412,0.00039537,15]
[337736615,1725998749465,-500.0,0.00039537,15]
[337736616,1725998749486,-151.0,0.00039539,14]
[337736617,1725998749509,-252.633139,0.00039539,14]
[337736618,1725998749530,-252.633139,0.00039539,14]
[337736619,1725998749551,-151.0,0.00039539,14]
[337736620,1725998749572,-151.0,0.00039539,7]
[337736621,1725998749592,-151.0,0.00039539,14]
[337736622,1725998749616,-557.66617,0.00039539,14]
[337736623,1725998749638,-557.66617,0.00039539,14]
[337736624,1725998749659,-500.0,0.00039546,30]
[337736625,1725998749682,-13551.96621741,0.00039548,31]
[337736626,1725998749705,-151.0,0.00039548,14]
[337736627,1725998749726,-151.0,0.00039548,14]
[337736628,1725998749747,-234.63379,0.00039548,14]
[337736629,1725998749770,-234.63379,0.00039548,14]
[337736630,1725998749790,-151.0,0.00039548,14]
[337736631,1725998749811,-485.139077,0.00039548,14]
[337736632,1725998749833,-485.139077,0.00039548,14]
[337736633,1725998749854,-258.377021,0.00039548,14]
[337736634,1725998749875,-258.377021,0.00039548,14]
[337736635,1725998749896,-151.0,0.00039548,14]
[337736636,1725998749917,-10000.0,0.00039548,14]
[337736637,1725998749941,-10000.0,0.00039548,14]
[337736638,1725998749963,-2832.32464179,0.00039548,14]
[337736660,1725998965149,-380.0,0.00035164,2]
[337736661,1725999028302,189.638771,0.00017808,2]
[337736662,1725999028646,189.638771,0.00024081,2]
[337736663,1725999029023,189.638771,0.00030353,2]
[337736701,1725999033711,-189.638771,0.00036626,2]
[337736702,1725999033722,-600.0,0.00037717,7]
[337736703,1725999033731,-800.0,0.00037733,7]
[337736704,1725999033740,-600.0,0.00038182,7]
[337736705,1725999033751,-565.96794073,0.00038194,7]
[337736706,1725999033775,-234.03205927,0.00038194,7]
[337736707,1725999033785,-76.80705073,0.00038251,2]
[337736744,1725999039703,-89.85961594,0.00038251,2]
[337736746,1725999039713,-600.0,0.00038351,7]
[337736748,1725999039723,-400.0,0.00038453,30]
[337736750,1725999039733,-500.0,0.00038454,7]
[337736752,1725999039743,-600.0,0.00038503,7]
[337736754,1725999039752,-1000.0,0.00038658,7]
[337736755,1725999039762,-500.0,0.00038713,7]
[337736756,1725999039772,-800.0,0.00038899,7]
[337736757,1725999039781,-1000.0,0.00038936,7]
[337736758,1725999039791,-1000.0,0.00038971,7]
[337736760,1725999039800,-1000.0,0.00039104,7]
[337736762,1725999039810,-1000.0,0.00039139,7]
[337736764,1725999039819,-1000.0,0.00039197,7]
[337736766,1725999039829,-1000.0,0.00039223,7]
[337736768,1725999039838,-500.0,0.00039258,7]
[337736770,1725999039848,-800.0,0.00039336,7]
[337736771,1725999039858,-1664.00425985,0.0003935,32]
[337736773,1725999039867,-500.0,0.0003939,30]
[337736775,1725999039877,-348.77832183,0.00039438,2]
[337736776,1725999039886,-348.77832183,0.00039438,2]
[337736777,1725999039895,-348.77832183,0.00039438,2]
[337736778,1725999039905,-960.41416514,0.00039448,2]
[337736779,1725999039914,-800.0,0.00039454,7]
[337736780,1725999039923,-1000.0,0.00039458,2]
[337736781,1725999039933,-1875.20744889,0.0003947,2]
[337736782,1725999039942,-800.0,0.00039515,7]
[337736783,1725999039952,-151.0,0.00039539,14]
[337736784,1725999039962,-314.910684,0.00039539,14]
[337736785,1725999039972,-314.910684,0.00039539,14]
[337736786,1725999039981,-151.0,0.00039539,14]
[337736787,1725999039991,-151.0,0.00039539,14]
[337736788,1725999040000,-500.0,0.0003954,7]
[337736789,1725999040010,-7167.67535821,0.00039548,14]
[337736790,1725999040019,-10000.0,0.00039548,14]
[337736791,1725999040029,-151.0,0.00039548,14]
[337736792,1725999040041,-314.910684,0.00039548,14]
[337736793,1725999040050,-314.910684,0.00039548,14]
[337736794,1725999040060,-151.0,0.00039548,14]
[337736795,1725999040069,-151.0,0.00039548,14]
[337736796,1725999040079,-8413.07,0.00039548,3]
[337736797,1725999040092,-219.02006235,0.00039548,3]
[337736808,1725999042771,-522.2604688,0.0003946,2]
[337736834,1725999045912,-477.7395312,0.0003946,2]
[337736835,1725999045921,-10000.40993765,0.00039548,3]
[337736836,1725999045932,-8516.2,0.00039548,3]
[337736837,1725999045942,-151.0,0.00039549,14]
[337736838,1725999045952,-1082.739104,0.00039549,14]
[337736839,1725999045962,-1082.739104,0.00039549,14]
[337736840,1725999045972,-151.0,0.00039549,14]
[337736841,1725999045982,-540.957617,0.00039549,14]
[337736842,1725999045991,-540.957617,0.00039549,14]
[337736843,1725999046000,-1079.417339,0.00039549,14]
[337736844,1725999046011,-151.0,0.00039549,14]
[337736845,1725999046020,-1079.417339,0.00039549,14]
[337736846,1725999046030,-151.0,0.00039549,14]
[337736847,1725999046040,-151.0,0.00039549,14]
[337736848,1725999046049,-151.0,0.00039549,14]
[337736849,1725999046058,-151.0,0.00039549,14]
[337736850,1725999046073,-500.0,0.00039557,15]
[337736851,1725999046082,-285.44363601,0.00039557,15]
[337736852,1725999046092,-151.0,0.00039557,14]
[337736853,1725999046101,-151.0,0.00039557,14]
[337736854,1725999046110,-1082.739104,0.00039557,14]
[337736855,1725999046119,-1082.739104,0.00039557,14]
[337736856,1725999046128,-303.246205,0.00039557,14]
[337736857,1725999046138,-303.246205,0.00039557,14]
[337736858,1725999046147,-153.798017,0.00039557,14]
[337736859,1725999046157,-540.957617,0.00039557,14]
[337736860,1725999046166,-540.957617,0.00039557,14]
[337736861,1725999046175,-1079.417339,0.00039557,14]
[337736862,1725999046185,-151.0,0.00039557,14]
[337736863,1725999046193,-1769.370873,0.00039557,14]
[337736864,1725999046203,-1079.417339,0.00039557,14]
[337736865,1725999046213,-1769.370873,0.00039557,14]
[337736866,1725999046222,-151.0,0.00039557,14]
[337736867,1725999046232,-151.0,0.00039557,14]